bitfinex-derivatives/quotes_SOLF0:USTF0_20260211
["timestamp","ask_amount","ask_price","bid_price","bid_amount"]
[1770824745124,11.2271,80.199,80.146,11.2345]
[1770824745525,6.44693482,80.218,80.146,6.95922002]
[1770824745715,11.2246,80.217,80.159,18.19192002]
[1770824745919,6.44693482,80.218,80.159,6.95922002]
[1770824746517,11.2265,80.204,80.159,6.95922002]
[1770824746725,6.44693482,80.216,80.131,6.95922002]
[1770824747028,11.2281,80.192,80.137,11.2357]
[1770824748418,11.2281,80.192,80.131,6.95922002]
[1770824748419,6.44693482,80.197,80.131,6.95922002]
[1770824749128,6.44693482,80.197,80.147,11.2343]
[1770824750221,6.44693482,80.197,80.155,11.2331]
[1770824750527,10.68988236,80.2,80.155,11.2331]
[1770824751316,10.68988236,80.2,80.072,119.18]
[1770824751317,6.57784872,80.179,80.111,6.46643046]
[1770824751522,6.57784872,80.159,80.081,6.46643046]
[1770824752025,6.57784872,80.155,80.081,6.46643046]
[1770824752214,6.57784872,80.153,80.081,6.46643046]
[1770824752426,6.57784872,80.151,80.081,6.46643046]
[1770824753219,10.68988236,80.16,80.106,11.24]
[1770824753419,6.57784872,80.158,80.061,6.46643046]
[1770824754022,6.57784872,80.158,80.085,6.46643046]
[1770824755025,6.57784872,80.158,80.104,6.46643046]
[1770824755229,6.57784872,80.158,80.081,6.46643046]
[1770824755434,6.57784872,80.139,80.081,6.46643046]
[1770824755930,6.57784872,80.137,80.052,6.46643046]
[1770824756133,6.57784872,80.135,80.052,6.46643046]
[1770824756634,11.2363,80.134,80.083,11.2433]
[1770824756830,11.2363,80.134,80.051,155.38]
[1770824756831,11.2363,80.134,80.084,6.46643046]
[1770824757431,10.68988236,80.12,80.065,6.46643046]
[1770824758129,17.26773108,80.12,80.065,6.46643046]
[1770824758433,10.68988236,80.12,80.065,6.46643046]
[1770824759836,10.68988236,80.13,80.065,6.46643046]
[1770824760040,11.2371,80.128,80.075,11.2444]
[1770824760242,10.68988236,80.13,80.075,11.2444]
[1770824760432,10.68988236,80.13,80.065,6.46643046]
[1770824760741,6.57784872,80.128,80.074,11.2446]
[1770824760931,6.57784872,80.119,80.047,6.46643046]
[1770824761333,6.57784872,80.119,80.07,11.2451]
[1770824761739,10.6931256,80.1,80.047,6.46643046]
[1770824761940,6.57784872,80.099,80.028,6.46643046]
[1770824762242,6.57784872,80.099,80.046,11.2485]
[1770824762942,6.57784872,80.099,80.028,6.46643046]
[1770824764440,6.57784872,80.099,80.045,11.2487]
[1770824765041,6.57784872,80.096,80.028,6.46643046]
[1770824765241,6.57784872,80.079,80.011,6.46643046]
[1770824765441,6.57784872,80.059,79.994,6.46643046]
[1770824765645,6.57784872,80.077,80.011,6.46643046]
[1770824767038,99.6,80.095,80.011,6.46643046]
[1770824767039,10.6931256,80.06,80.011,6.46643046]
[1770824767338,6.57784872,80.059,80.011,11.2535]
[1770824767738,6.57784872,80.059,79.991,6.46643046]
[1770824767933,6.57784872,80.059,80.011,11.2534]
[1770824768645,10.6931256,80.06,80.017,11.2525]
[1770824769144,10.6931256,80.06,80.009,11.2537]
[1770824770143,6.57784872,80.081,80.011,6.46643046]
[1770824770536,10.6931256,80.1,80.044,11.2488]
[1770824770840,6.57784872,80.099,80.036,6.46643046]
[1770824771043,6.57784872,80.09,80.002,6.46643046]
[1770824771239,6.57784872,80.09,80.035,11.2501]
[1770824771443,6.57784872,80.09,80.021,6.46643046]
[1770824772445,6.57784872,80.09,80.04,11.2493]
[1770824772742,6.57784872,80.09,80.021,6.46643046]
[1770824772944,6.57784872,80.13,80.047,6.46643046]
[1770824773246,6.57784872,80.13,80.051,6.46643046]
[1770824773449,10.6931256,80.14,80.08,6.46643046]
[1770824773940,10.6931256,80.14,80.092,11.2421]
[1770824774139,6.57784872,80.139,80.051,6.46643046]
[1770824774745,6.57784872,80.139,80.076,6.46643046]
[1770824775140,6.57784872,80.139,80.058,6.46643046]
[1770824775349,11.2366,80.132,80.071,11.245]
[1770824775540,6.57784872,80.131,80.071,11.245]
[1770824776341,6.57784872,80.119,80.061,11.2463]
[1770824776546,6.57784872,80.119,80.035,6.46643046]
[1770824776734,10.6931256,80.1,80.035,6.46643046]
[1770824776935,6.57784872,80.079,80.016,6.46643046]
[1770824777945,10.6931256,80.06,79.996,6.46643046]
[1770824778245,6.57784872,80.077,79.996,6.46643046]
[1770824778848,6.57784872,80.077,80.006,6.46643046]
[1770824779046,6.57784872,80.096,80.011,6.46643046]
[1770824779246,10.6931256,80.08,80.011,6.46643046]
[1770824779642,6.57784872,80.096,80.011,6.46643046]
[1770824780449,10.6931256,80.1,80.011,6.46643046]
[1770824780450,6.71558109,80.093,80.011,6.46643046]
[1770824781051,6.71558109,80.093,80.029,6.75749418]
[1770824782157,11.2423,80.091,80.041,11.2492]
[1770824782656,6.71558109,80.085,80.009,6.75749418]
[1770824782856,6.71558109,80.079,80.009,6.75749418]
[1770824783459,6.71558109,80.077,80.022,11.2518]
[1770824784054,6.71558109,80.077,80.029,11.2509]
[1770824784555,6.71558109,80.077,80.009,6.75749418]
[1770824784757,6.71558109,80.077,80.028,11.251]
[1770824784947,6.71558109,80.077,80.009,6.75749418]
[1770824785461,6.71558109,80.059,79.99,6.75749418]
[1770824786661,11.2469,80.058,80.008,11.2539]
[1770824787555,6.71558109,80.059,80.015,11.2528]
[1770824787754,6.71558109,80.059,79.99,6.75749418]
[1770824788555,6.71558109,80.059,79.966,22.5196]
[1770824788556,6.71558109,80.059,80.013,11.2531]
[1770824789148,11.2469,80.058,80.006,17.98614622]
[1770824789352,10.6931256,80.06,80.006,17.98614622]
[1770824789353,7.00013951,80.057,80.006,11.2541]
[1770824789563,7.00013951,80.057,79.989,6.73204622]
[1770824789760,7.00013951,80.039,79.961,6.73204622]
[1770824791062,11.57734329,80.088,79.95,10.6931256]
[1770824791063,7.00013951,80.056,79.979,6.73204622]
[1770824792363,18.24843951,80.048,79.979,6.73204622]
[1770824792559,7.00013951,80.047,79.979,6.73204622]
[1770824792755,184.45798462,80.093,79.979,6.73204622]
[1770824792756,7.00013951,80.039,79.979,6.73204622]
[1770824792962,18.25073951,80.032,79.979,17.99004622]
[1770824793157,7.00013951,80.031,79.979,6.73204622]
[1770824793361,131.7693,80.074,79.944,6.73204622]
[1770824793362,7.00013951,80.019,79.944,6.73204622]
[1770824794062,11.2526,80.018,79.969,11.2594]
[1770824794662,7.00013951,80.019,79.976,11.2584]
[1770824794860,7.00013951,80.019,79.961,6.73204622]
[1770824795260,33.97057273,80.072,79.93,483.81295671]
[1770824795261,7.00013951,80.012,79.954,11.2614]
[1770824795864,10.6931256,80.02,79.946,11.2625]
[1770824795865,7.00013951,80.001,79.946,11.2625]
[1770824796060,7.00013951,79.999,79.943,6.73204622]
[1770824796760,7.00013951,79.991,79.932,11.2646]
[1770824797269,7.00013951,79.991,79.94,11.2634]
[1770824797561,7.00013951,79.991,79.923,6.73204622]
[1770824798467,7.00013951,79.989,79.926,11.2653]
[1770824798765,7.00013951,79.989,79.878,22.5444]
[1770824798766,7.00013951,79.979,79.901,6.73204622]
[1770824798959,7.00013951,79.979,79.919,6.73204622]
[1770824799568,7.00013951,79.978,79.919,6.73204622]
[1770824799867,7.00013951,79.978,79.888,6.73204622]
[1770824800263,11.2608,79.96,79.903,6.73204622]
[1770824800464,7.00013951,79.978,79.903,6.73204622]
[1770824800662,10.6931256,79.96,79.906,11.2682]
[1770824800863,7.00013951,79.978,79.907,6.73204622]
[1770824801264,7.00013951,79.978,79.922,11.2659]
[1770824801465,7.00013951,79.978,79.907,6.73204622]
[1770824801867,11.2587,79.975,79.913,6.73204622]
[1770824802064,7.00013951,79.978,79.913,6.73204622]
[1770824802567,7.00013951,79.977,79.919,11.2664]
[1770824802969,7.00013951,79.977,79.913,6.73204622]
[1770824803171,11.259,79.972,79.913,6.73204622]
[1770824803874,11.2605,79.962,79.913,6.73204622]
[1770824804075,7.00013951,79.977,79.913,6.73204622]
[1770824804474,7.00013951,79.973,79.913,6.73204622]
[1770824804970,10.6931256,79.98,79.922,11.266]
[1770824805168,10.6931256,79.98,79.874,99.76]
[1770824805169,10.6931256,79.98,79.923,6.73204622]
[1770824805377,7.00013951,79.979,79.891,6.73204622]
[1770824805567,7.00013951,79.979,79.917,11.2666]
[1770824805568,11.2587,79.974,79.917,11.2666]
[1770824805774,18.25883951,79.974,79.918,6.73204622]
[1770824806368,7.00013951,79.974,79.918,6.73204622]
[1770824806670,7.00013951,79.979,79.918,6.73204622]
[1770824806873,11.2611,79.958,79.901,6.73204622]
[1770824807470,7.00013951,79.954,79.891,11.2703]
[1770824807873,7.00013951,79.954,79.891,18.00234622]
[1770824808377,17.69326511,79.94,79.882,11.2715]
[1770824808569,7.00013951,79.939,79.882,11.2715]
[1770824809574,11.2647,79.932,79.873,18.00484622]
[1770824809774,7.00013951,79.931,79.873,18.00484622]
[1770824810174,7.00013951,79.931,79.873,6.73204622]
[1770824811172,6.75238476,79.919,79.852,6.35785428]
[1770824811573,6.75238476,79.937,79.884,11.2713]
[1770824811984,6.75238476,79.937,79.876,6.35785428]
[1770824812181,6.75238476,79.934,79.876,6.35785428]
[1770824812988,6.75238476,79.934,79.891,11.2703]
[1770824813475,6.75238476,79.95,79.905,11.2683]
[1770824813680,6.75238476,79.95,79.876,6.35785428]
[1770824814081,6.75238476,79.939,79.887,11.2709]
[1770824814582,6.75238476,79.939,79.851,6.35785428]
[1770824814778,6.75238476,79.937,79.871,6.35785428]
[1770824814984,10.6931256,79.94,79.871,6.35785428]
[1770824815376,6.75238476,79.954,79.85,33.2454256]
[1770824815377,6.75238476,79.954,79.891,6.35785428]
[1770824815581,6.75238476,79.954,79.871,6.35785428]
[1770824815888,6.75238476,79.956,79.887,6.35785428]
[1770824816687,11.2615,79.955,79.905,11.2683]
[1770824817084,10.6931256,79.96,79.905,11.2683]
[1770824817085,11.2619,79.951,79.905,11.2683]
[1770824817278,6.75238476,79.95,79.905,11.2683]
[1770824817485,6.75238476,79.95,79.887,6.35785428]
[1770824817984,11.2645,79.933,79.887,6.35785428]
[1770824818182,6.75238476,79.939,79.887,6.35785428]
[1770824818381,6.75238476,79.939,79.868,6.35785428]
[1770824818690,6.75238476,79.923,79.868,6.35785428]
[1770824818986,6.75238476,79.919,79.831,6.35785428]
[1770824819487,18.02118476,79.903,79.849,11.2762]
[1770824819989,11.2701,79.893,79.847,6.35785428]
[1770824820781,6.75238476,79.884,79.831,6.35785428]
[1770824821089,10.6931256,79.92,79.793,494.46002843]
[1770824821090,6.75238476,79.87,79.814,6.35785428]
[1770824821287,6.75238476,79.889,79.814,6.35785428]
[1770824821486,6.75238476,79.869,79.814,6.35785428]
[1770824821688,6.75238476,79.86,79.798,11.2834]
[1770824821878,6.75238476,79.849,79.795,6.35785428]
[1770824822083,6.75238476,79.887,79.801,6.35785428]
[1770824822795,6.75238476,79.869,79.801,6.35785428]
[1770824822977,10.75993772,79.85,79.782,6.35785428]
[1770824823176,10.75993772,79.85,79.802,11.2828]
[1770824823383,10.75993772,79.85,79.759,2.17990479]
[1770824823384,6.75238476,79.868,79.803,6.35785428]
[1770824823887,6.75238476,79.849,79.794,6.35785428]
[1770824824188,10.75993772,79.86,79.794,6.35785428]
[1770824824381,6.75238476,79.858,79.799,11.2833]
[1770824824688,6.75238476,79.839,79.761,6.35785428]
[1770824824893,10.75993772,79.86,79.777,6.35785428]
[1770824825092,6.75238476,79.859,79.777,6.35785428]
[1770824825389,6.75238476,79.859,79.796,6.35785428]
[1770824825785,6.75238476,79.859,79.771,6.35785428]
[1770824826189,11.2774,79.842,79.786,11.2851]
[1770824826388,6.75238476,79.859,79.771,6.35785428]
[1770824826693,11.2771,79.844,79.782,11.2857]
[1770824827090,6.75238476,79.859,79.771,6.35785428]
[1770824827696,6.75238476,79.856,79.791,11.2844]
[1770824827896,6.75238476,79.856,79.792,6.35785428]
[1770824828284,6.75238476,79.856,79.77,21.75993772]
[1770824828285,6.75238476,79.873,79.809,6.35785428]
[1770824828793,17.51232248,79.91,79.839,6.35785428]
[1770824828985,6.75238476,79.91,79.839,6.35785428]
[1770824830299,11.268,79.908,79.85,11.2761]
[1770824830495,6.75238476,79.91,79.85,17.63395428]
[1770824831095,6.75238476,79.908,79.841,11.2774]
[1770824831801,6.75238476,79.904,79.841,11.2774]
[1770824832194,11.2704,79.891,79.831,6.35785428]
[1770824832394,6.75238476,79.89,79.831,6.35785428]
[1770824832596,6.75238476,79.909,79.842,11.2772]
[1770824832792,6.75238476,79.896,79.842,11.2772]
[1770824832997,6.75238476,79.896,79.831,6.35785428]
[1770824833303,6.75238476,79.885,79.813,6.35785428]
[1770824833701,6.75238476,79.904,79.84,6.35785428]
[1770824835601,6.75238476,79.904,79.856,11.2753]
[1770824836312,47.54768439,80.048,79.84,6.35785428]
[1770824836313,10.75993772,79.93,79.858,6.35785428]
[1770824836497,6.75238476,79.94,79.827,175.458]
[1770824836498,6.75238476,79.94,79.861,6.35785428]
[1770824836693,10.75993772,79.95,79.861,6.35785428]
[1770824836905,10.75993772,79.95,79.885,6.35785428]
[1770824837493,6.75238476,79.961,79.885,6.35785428]
[1770824837697,6.75238476,79.979,79.885,6.35785428]
[1770824838108,6.75238476,79.979,79.908,6.35785428]
[1770824839109,6.75238476,79.999,79.934,11.2643]
[1770824839302,6.75238476,80.016,79.935,6.35785428]
[1770824839896,6.75238476,80.016,79.941,6.35785428]
[1770824840302,6.90329658,80.036,79.959,6.8696736]
[1770824840905,6.90329658,80.036,79.985,11.257]
[1770824841122,6.90329658,80.036,79.96,10.75993772]
[1770824841411,6.90329658,80.036,79.985,11.2571]
[1770824841909,6.90329658,80.056,79.989,6.8696736]
[1770824842506,6.90329658,80.044,79.96,10.75993772]
[1770824842709,6.90329658,80.044,79.961,6.8696736]
[1770824842912,6.90329658,80.028,79.965,11.2599]
[1770824843405,11.2484,80.047,79.984,11.2572]
[1770824843600,6.90329658,80.049,79.979,6.8696736]
[1770824844314,6.90329658,80.049,79.961,6.8696736]
[1770824844706,6.90329658,80.047,79.973,11.2588]
[1770824845209,6.90329658,80.029,79.961,6.8696736]
[1770824845512,9.56489472,80.073,79.961,6.8696736]
[1770824845513,18.15149658,80.049,79.961,6.8696736]
[1770824845808,6.90329658,80.048,79.961,6.8696736]
[1770824846705,6.73375539,80.046,79.961,6.8696736]
[1770824847207,9.56489472,80.073,79.961,6.8696736]
[1770824847208,6.73375539,80.029,79.97,11.2591]
[1770824848108,6.73375539,80.029,79.961,6.8696736]
[1770824848407,6.73375539,80.047,79.961,6.8696736]
[1770824848804,6.73375539,80.069,80.008,11.2538]
[1770824849003,6.73375539,80.069,79.991,6.2787156]
[1770824849702,6.73375539,80.061,79.996,11.2555]
[1770824850099,6.73375539,80.061,79.991,6.2787156]
[1770824850301,6.73375539,80.061,80.006,11.2541]
[1770824850700,10.75993772,80.1,79.961,6.2787156]
[1770824850701,6.73375539,80.049,79.961,6.2787156]
[1770824850912,6.73375539,80.049,79.993,11.2559]
[1770824852306,6.73375539,80.047,79.993,11.2559]
[1770824852711,6.73375539,80.029,79.984,11.2572]
[1770824852912,6.73375539,80.024,79.96,6.2787156]
[1770824853613,10.75993772,80.03,79.96,6.2787156]
[1770824853824,6.73375539,80.042,79.961,6.2787156]
[1770824854705,11.2508,80.031,79.982,11.2575]
[1770824854910,99.78,80.068,79.961,6.2787156]
[1770824854911,6.73375539,80.029,79.961,6.2787156]
[1770824855513,6.73375539,80.028,79.961,6.2787156]
[1770824856312,6.73375539,80.028,79.981,11.2576]
[1770824856512,6.73375539,80.028,79.961,6.2787156]
[1770824857221,6.73375539,80.047,79.986,6.2787156]
[1770824858706,6.73375539,80.047,79.994,11.2557]
[1770824859816,6.73375539,80.045,79.986,17.5356156]
[1770824860008,17.49369311,80.03,79.968,6.2787156]
[1770824860409,17.49369311,80.05,79.992,11.2561]
[1770824860608,6.73375539,80.049,79.984,6.2787156]
[1770824860814,99.76,80.062,79.961,6.2787156]
[1770824860815,6.73375539,80.029,79.961,6.2787156]
[1770824861015,6.73375539,80.029,79.974,11.2587]
[1770824861016,11.2524,80.019,79.974,11.2587]
[1770824861220,6.73375539,80.018,79.974,11.2587]
[1770824862114,6.73375539,80.018,79.965,11.2599]
[1770824862307,6.73375539,80.009,79.922,6.2787156]
[1770824862506,11.2549,80.001,79.953,11.2616]
[1770824862711,6.73375539,80.009,79.921,22.5321]
[1770824862712,6.73375539,80.009,79.939,6.2787156]
[1770824863312,6.73375539,80.009,79.96,11.2607]
[1770824863513,6.73375539,80.009,79.939,6.2787156]
[1770824864016,11.2566,79.989,79.942,11.2631]
[1770824864816,11.2566,79.989,79.922,6.2787156]
[1770824865012,6.73375539,79.983,79.922,6.2787156]
[1770824865218,6.73375539,79.969,79.907,11.2681]
[1770824865526,6.73375539,79.969,79.898,6.2787156]
[1770824866227,10.75993772,79.97,79.898,6.2787156]
[1770824866421,6.73375539,79.986,79.898,6.2787156]
[1770824866627,6.73375539,80.06,79.931,6.2787156]
[1770824866818,6.73375539,80.039,79.951,6.2787156]
[1770824867124,11.2515,80.025,79.971,6.2787156]
[1770824867334,6.73375539,80.039,79.971,6.2787156]
[1770824867521,6.73375539,80.039,79.951,6.2787156]
[1770824867715,11.2531,80.014,79.965,11.2599]
[1770824867923,17.49369311,80.02,79.965,11.2599]
[1770824868123,6.73375539,80.019,79.965,11.2599]
[1770824868319,17.49369311,80.04,79.976,6.2787156]
[1770824868520,6.73375539,80.039,79.976,6.2787156]
[1770824869928,6.73375539,80.037,79.979,11.2579]
[1770824870224,17.98625539,80.019,79.966,11.2597]
[1770824870426,6.73375539,80.019,79.966,11.2597]
[1770824870626,6.81613581,80.037,79.967,6.54695484]
[1770824870926,6.81613581,80.035,79.967,6.54695484]
[1770824872830,11.2505,80.033,79.985,11.2571]
[1770824873019,6.78388397,80.032,79.94,10.75993772]
[1770824873227,6.78388397,80.019,79.948,6.54695484]
[1770824874719,11.2536,80.011,79.959,11.2607]
[1770824875523,6.78388397,80.019,79.97,11.2591]
[1770824875923,6.77826347,80.016,79.97,11.2591]
[1770824876825,18.03116347,80.016,79.97,11.2591]
[1770824877133,10.75993772,80.02,79.977,11.2582]
[1770824877535,6.77272109,80.034,79.987,11.2568]
[1770824878031,10.75993772,80.04,79.964,6.54695484]
[1770824878230,10.75993772,80.04,80.003,11.2545]
[1770824878420,10.75993772,80.04,79.984,6.54695484]
[1770824878421,17.53161677,80.05,79.984,6.54695484]
[1770824878730,6.75968055,80.068,80.018,11.2524]
[1770824878928,6.75968055,80.066,80.018,11.2524]
[1770824879227,6.75968055,80.064,80.018,11.2524]
[1770824879421,6.75968055,80.064,80.025,11.2515]
[1770824879822,18.00578055,80.064,80.017,11.2526]
[1770824880030,18.00578055,80.064,80.003,6.54695484]
[1770824880031,6.75861684,80.063,80.003,6.54695484]
[1770824880233,6.72406377,80.061,80.003,6.54695484]
[1770824880432,9.65383421,80.06,80.02,11.2522]
[1770824880733,6.72281063,80.069,80.003,6.54695484]
[1770824880934,6.72281063,80.049,79.983,6.54695484]
[1770824881127,11.2501,80.036,79.991,11.2562]
[1770824881330,9.65442071,80.035,79.991,11.2562]
[1770824881526,9.65442071,80.034,79.991,11.2562]
[1770824881834,6.72172831,80.029,79.983,11.2573]
[1770824882034,9.65442071,80.028,79.961,6.54695484]
[1770824882224,11.2516,80.025,79.981,11.2577]
[1770824882424,6.65092667,80.022,79.942,6.54695484]
[1770824882630,11.2548,80.002,79.961,11.2605]
[1770824882838,9.68904067,80.001,79.961,11.2605]
[1770824883136,9.68904067,80.0,79.942,6.54695484]
[1770824883326,6.65092667,80.009,79.942,6.54695484]
[1770824883327,9.68904067,79.999,79.942,6.54695484]
[1770824883526,9.68904067,79.998,79.942,6.54695484]
[1770824883724,9.68904067,79.997,79.965,11.2598]
[1770824883932,9.68904067,79.996,79.965,11.2598]
[1770824884129,9.69884055,79.995,79.965,11.2598]
[1770824884332,9.69884055,79.994,79.965,11.2598]
[1770824884541,6.65092667,80.009,79.965,11.2598]
[1770824884742,9.69868753,80.008,79.965,11.2598]
[1770824885037,9.69868753,80.007,79.965,11.2598]
[1770824885237,8.753e-05,80.006,79.958,6.54695484]
[1770824885435,18.10476376,80.024,79.958,6.54695484]
[1770824885630,6.6380452,80.023,79.958,6.54695484]
[1770824885831,6.6380452,80.002,79.935,6.54695484]
[1770824886138,10.72311936,80.01,79.935,6.54695484]
[1770824886139,6.6380452,79.999,79.935,6.54695484]
[1770824886936,11.46671856,79.987,79.916,6.54695484]
[1770824887141,6.63973613,79.989,79.916,6.54695484]
[1770824887735,6.63882778,79.981,79.929,11.2649]
[1770824887948,10.72311936,79.95,79.88,6.54695484]
[1770824888149,6.63882778,79.949,79.88,6.54695484]
[1770824888442,6.63882778,79.945,79.88,6.54695484]
[1770824889145,6.59817465,79.929,79.863,6.54695484]
[1770824889540,6.59817465,79.929,79.874,11.2726]
[1770824889739,6.59817465,79.929,79.863,6.54695484]
[1770824890041,6.59732917,79.918,79.864,11.2741]
[1770824890746,6.54335799,79.928,79.873,11.2729]
[1770824891139,6.54335799,79.909,79.832,6.54695484]
[1770824892246,11.2692,79.9,79.832,6.54695484]
[1770824892451,6.55467491,79.899,79.832,6.54695484]
[1770824892649,10.72311936,79.89,79.832,6.54695484]
[1770824892949,6.55467491,79.869,79.795,6.54695484]
[1770824893538,6.55389556,79.889,79.809,6.54695484]
[1770824894246,10.72311936,79.87,79.809,6.54695484]
[1770824894642,6.57523059,79.866,79.809,6.54695484]
[1770824894846,6.57523059,79.866,79.805,6.54695484]
[1770824895245,10.72311936,79.86,79.806,11.2823]
[1770824895654,10.72311936,79.86,79.807,6.54695484]
[1770824895840,10.72311936,79.88,79.812,6.54695484]
[1770824896155,22.92009014,79.94,79.812,6.54695484]
[1770824896156,6.57448775,79.905,79.812,6.54695484]
[1770824896444,10.72311936,79.92,79.836,6.54695484]
[1770824896645,6.59744197,79.919,79.836,6.54695484]
[1770824897152,6.59744197,79.899,79.836,6.54695484]
[1770824897745,6.59672339,79.879,79.811,6.54695484]
[1770824898252,10.72311936,79.86,79.785,99.84]
[1770824898549,10.72311936,79.86,79.786,6.54695484]
[1770824898754,5.95922999,79.859,79.786,6.54695484]
[1770824899250,10.72311936,79.82,79.751,6.54695484]
[1770824899742,5.95861598,79.859,79.771,6.54695484]
[1770824900146,5.95861598,79.835,79.773,11.287]
[1770824900346,5.94575118,79.819,79.752,6.54695484]
[1770824901149,5.94575118,79.819,79.741,6.902102]
[1770824901150,5.95856118,79.845,79.755,6.79036896]
[1770824901344,175.2602,79.918,79.755,6.79036896]
[1770824901345,5.95856118,79.839,79.755,6.79036896]
[1770824902145,10.72311936,79.86,79.741,6.902102]
[1770824902146,5.9545268,79.819,79.741,6.902102]
[1770824902346,10.72311936,79.8,79.741,6.902102]
[1770824902945,10.72311936,79.8,79.742,6.79036896]
[1770824903250,5.9545268,79.819,79.76,11.2888]
[1770824903453,10.72311936,79.8,79.742,6.79036896]
[1770824903649,5.99103534,79.799,79.745,11.291]
[1770824903844,5.99103534,79.823,79.746,6.79036896]
[1770824904049,5.99103534,79.819,79.746,6.79036896]
[1770824904251,10.72311936,79.8,79.752,11.2899]
[1770824905453,10.72311936,79.8,79.764,11.2883]
[1770824906559,10.72311936,79.8,79.753,11.2898]
[1770824906761,5.99771393,79.799,79.753,11.2898]
[1770824907067,5.99771393,79.799,79.741,6.902102]
[1770824907759,5.99771393,79.799,79.753,11.2899]
[1770824908464,5.99887094,79.819,79.745,6.8453379]
[1770824909058,5.99887094,79.819,79.767,11.2879]
[1770824909259,10.72311936,79.82,79.745,6.8453379]
[1770824909464,5.99792844,79.837,79.745,6.8453379]
[1770824909757,5.99722162,79.819,79.767,11.2878]
[1770824910257,5.99722162,79.816,79.767,11.2878]
[1770824910458,10.72311936,79.86,79.747,11.2907]
[1770824910459,5.99462619,79.799,79.747,11.2907]
[1770824910758,5.99462619,79.797,79.747,11.2907]
[1770824910961,5.99462619,79.797,79.741,6.902102]
[1770824911254,5.99484416,79.815,79.742,6.8453379]
[1770824912062,11.2814,79.814,79.754,11.2897]
[1770824912259,5.99393084,79.813,79.754,11.2897]
[1770824912464,5.85517078,79.799,79.741,6.902102]
[1770824912867,5.85517078,79.796,79.744,11.2911]
[1770824913071,5.85517078,79.796,79.741,6.902102]
[1770824913576,5.85444847,79.779,79.706,6.8453379]
[1770824913956,11.2879,79.768,79.714,11.2954]
[1770824915073,11.2862,79.779,79.722,11.2942]
[1770824915664,11.2849,79.788,79.706,6.8453379]
[1770824915852,10.72311936,79.8,79.706,6.8453379]
[1770824916768,11.2848,79.789,79.738,11.2919]
[1770824918762,11.2859,79.782,79.729,11.2932]
[1770824918967,10.72311936,79.78,79.701,7.39017026]
[1770824919162,11.2848,79.789,79.743,11.2913]
[1770824919663,10.72311936,79.8,79.758,11.2891]
[1770824919870,10.72311936,79.82,79.745,7.39068929]
[1770824920766,10.72311936,79.82,79.756,11.2894]
[1770824920767,11.2816,79.812,79.756,11.2894]
[1770824920956,10.72311936,79.82,79.756,11.2894]
[1770824921163,10.72311936,79.82,79.745,7.39068929]
[1770824921659,10.72311936,79.83,79.768,11.2877]
[1770824921866,10.72311936,79.81,79.745,7.39068929]
[1770824922370,11.2825,79.806,79.759,11.2889]
[1770824923168,10.72311936,79.81,79.726,7.41059329]
[1770824924268,10.72311936,79.81,79.75,11.2902]
[1770824924972,11.2843,79.793,79.75,11.2902]
[1770824925564,10.72311936,79.81,79.725,7.40945367]
[1770824925768,10.72311936,79.79,79.725,7.40945367]
[1770824926174,11.2872,79.773,79.725,18.70325367]
[1770824926375,10.72311936,79.79,79.725,7.40945367]
[1770824927774,11.2869,79.775,79.731,11.2929]
[1770824927973,10.72311936,79.79,79.725,7.40945367]
[1770824928275,10.72311936,79.79,79.708,7.41095428]
[1770824928481,11.2879,79.767,79.728,11.2933]
[1770824928867,11.286,79.781,79.735,11.2924]
[1770824929067,10.72311936,79.79,79.735,11.2924]
[1770824929583,10.72311936,79.79,79.711,7.39237723]
[1770824929584,11.2869,79.775,79.728,11.2934]
[1770824929874,10.72311936,79.79,79.711,7.39237723]
[1770824930077,11.2852,79.787,79.735,7.39283157]
[1770824930471,11.2852,79.787,79.711,7.40298678]
[1770824930768,11.2852,79.787,79.746,11.2908]
[1770824931081,11.2841,79.794,79.727,7.40298678]
[1770824931579,147.78,79.8,79.764,11.2882]
[1770824931773,10.72311936,79.8,79.711,7.40375588]
[1770824932071,11.2876,79.77,79.725,11.2938]
[1770824932569,10.72311936,79.78,79.725,11.2938]
[1770824932970,11.2874,79.771,79.725,11.2938]
[1770824933170,10.72311936,79.78,79.711,7.40375588]
[1770824933370,10.72311936,79.8,79.711,7.40375588]
[1770824933572,11.2847,79.79,79.711,7.40375588]
[1770824933772,10.72311936,79.8,79.728,7.39329314]
[1770824934775,147.78,79.813,79.673,121.26]
[1770824934776,10.72311936,79.78,79.691,7.39932717]
[1770824934972,11.2892,79.759,79.691,7.39932717]
[1770824935275,10.72311936,79.76,79.691,7.39932717]
[1770824935479,11.2922,79.737,79.694,11.2981]
[1770824935976,11.2936,79.727,79.672,11.3013]
[1770824936174,11.2936,79.727,79.599,175.9607]
[1770824936175,10.72311936,79.7,79.611,7.39975673]